Cogmind - Beta 13 --- EXPLORER MODE // 2024.06.05 @ 21:07:00 Player: Gnomed! Result: Destroyed by G-50 Soldier with Heavy Laser Performance ------------- Evolutions (4) 2000 Regions Visited (14) 2800 Robots Destroyed (140) 700 Value Destroyed (5462) 5462 Prototype IDs (17) 340 Alien Tech Used (0) 0 Bonus (3060) 3060 TOTAL SCORE: 14362 Bonus ------- High Alert Combat Kills 23 Follower Combat Kills 1559 Network Hubs Disabled 400 Met Data Miner 300 Met Zhirov 300 Built Enhanced Grunts 300 Met R17 at Cetus 500 Friendly Fire -322 Cogmind --------- Core Integrity 0/850 Matter 31/300 Energy 228/700 System Corruption 26% Temperature Critical (753) Movement Core (1950) Ox38 Location -6/Hub_04(d) Parts ------- > --- POWER (1) -------- Quantum Reactor > --- PROPULSION (3) --- (None) > --- UTILITY (9) ------ Huge Storage Unit Energy Well Improved Salvage Targeting Computer > --- WEAPON (3) ------- High-powered Shock Rifle Plasma Cannon > --- INVENTORY (25) --- Light Ion Engine Light Ion Engine Improved VSS Leg Improved VSS Leg Improved VSS Leg Improved VSS Leg Improved VSS Leg Enhanced Biometal Leg Enhanced Biometal Leg Enhanced Biometal Leg Energy Well (350) Energy Well (350) Improved Weapon Shielding Hardened Heavy Armor Plating Beamcaster Beamcaster Gauss Rifle Magnetic Acceleration Cannon Chainsword Peak State ------------ > --- POWER ------------ Quantum Reactor > --- PROPULSION ------- Enhanced Biometal Leg Enhanced Biometal Leg Enhanced Biometal Leg > --- UTILITY ---------- Experimental Heat Sink Cooling System Huge Storage Unit Seismic Detector Improved Salvage Targeting Computer Experimental Phase Shifter Improved Weapon Shielding Improved Light Armor Plating Experimental EM Disruption Field > --- WEAPON ----------- Advanced KE Penetrator Advanced KE Penetrator Advanced KE Penetrator > --- INVENTORY -------- Light Ion Engine Light Ion Engine Quantum Reactor Hardened Heavy Armor Plating High-powered Shock Rifle High-powered Shock Rifle Beamcaster Beamcaster Proton Cannon Plasma Cannon Gauss Rifle Magnetic Acceleration Cannon Chainsword [Rating: 106] Favorites ----------- Power Heavy Deuterium Engine Engine Heavy Deuterium Engine Reactor Quantum Reactor Propulsion Wheel Treads Advanced Treads Leg Enhanced Biometal Leg Wheel Wheel Flight Unit VTOL Module Utility Huge Storage Unit Device Improved Shield Generator Storage Huge Storage Unit Processor Improved Salvage Targeting Computer Protection Hardened Medium Armor Plating Weapon Advanced Assault Cannon Energy Gun Medium Laser Energy Cannon Proton Cannon Ballistic Gun Heavy Assault Rifle Ballistic Cannon Advanced Assault Cannon Launcher Grenade Launcher Slashing Weapon Chainsword Build | -11 -10 -9 -9 -8 -7 -7 -7 -7 -6 -6 -6 -6 -6 -6 ------- Run | Yrd Mat Mat Sto Mat Fac Low Low Dat Pro Fac Ext Cet Arc Hub Slots Evolved 9 | . 1 2 . 2 2 . . . . 2 . . . . Power . | . . . . . . . . . . . . . . . Propulsion 1 | . . . . . 1 . . . . . . . . . Utility 7 | . 1 1 . 2 1 . . . . 2 . . . . Weapon 1 | . . 1 . . . . . . . . . . . . Parts Attached 111 | 7 3 6 5 6 12 . . . 3 19 17 7 . 26 Power 11 | 1 . . 1 1 1 . . . . 1 2 1 . 3 Engine 6 | 1 . . 1 1 1 . . . . 1 1 . . . Core . | . . . . . . . . . . . . . . . Reactor 5 | . . . . . . . . . . . 1 1 . 3 Propulsion 26 | 2 . 1 . . 3 . . . 1 6 4 . . 9 Treads 4 | . . . . . . . . . . . 1 . . 3 Leg 9 | . . . . . . . . . . 3 . . . 6 Wheel 12 | 2 . 1 . . 3 . . . . 3 3 . . . Hover . | . . . . . . . . . . . . . . . Flight 1 | . . . . . . . . . 1 . . . . . Utility 37 | 2 1 1 1 4 5 . . . . 9 3 5 . 6 Device 19 | 1 1 . . 3 2 . . . . 4 1 4 . 3 Storage 5 | 1 . 1 1 . . . . . . 1 . . . 1 Processor 2 | . . . . 1 . . . . . 1 . . . . Hackware . | . . . . . . . . . . . . . . . Protection 11 | . . . . . 3 . . . . 3 2 1 . 2 Artifact . | . . . . . . . . . . . . . . . Weapon 37 | 2 2 4 3 1 3 . . . 2 3 8 1 . 8 Energy Gun 5 | 2 . . . . . . . . . . 1 . . 2 Energy Cannon 2 | . . . . . . . . . . . . . . 2 Ballistic Gun 18 | . 2 4 2 . . . . . . 3 3 1 . 3 Ballistic Cannon 6 | . . . . 1 3 . . . 1 . 1 . . . Launcher 5 | . . . 1 . . . . . 1 . 2 . . 1 Special Weapon . | . . . . . . . . . . . . . . . Impact Weapon . | . . . . . . . . . . . . . . . Slashing Weapon 1 | . . . . . . . . . . . 1 . . . Piercing Weapon . | . . . . . . . . . . . . . . . Special Melee Weapon . | . . . . . . . . . . . . . . . Unidentified Prototypes 6 | . . . . . 1 . . . . . . 1 . 4 Parts Lost 57 | . . . . 1 1 2 . . 6 4 15 . 4 24 Power 5 | . . . . . . . . . 1 . 1 . . 3 Propulsion 15 | . . . . . . 2 . . 1 . 3 . 2 7 Utility 19 | . . . . 1 . . . . 2 2 6 . 2 6 Weapon 18 | . . . . . 1 . . . 2 2 5 . . 8 Highest Loss Streak 10 | . . . . 1 1 2 . . 5 4 10 . 4 10 To Critical Strikes . | . . . . . . . . . . . . . . . Average Slot Usage (%) 64 | . 100 100 99 97 97 90 78 78 44 59 73 92 84 75 Engine 2 | . 12 10 9 7 7 7 7 7 . 1 3 . . . Wheel 6 | . 25 20 20 16 21 19 7 7 . 2 14 18 14 1 Device 15 | . 25 20 20 22 19 14 14 14 14 13 9 24 22 17 Storage 13 | . 12 20 20 16 14 14 14 14 14 11 12 12 9 7 Processor 1 | . . . . 8 . . . . . 1 6 6 6 6 Protection 4 | . . . . . 13 14 14 14 1 4 8 6 6 7 Ballistic Gun 5 | . 15 30 29 19 9 . . . . 5 11 17 18 16 Ballistic Cannon 8 | . . . . 4 11 21 21 21 8 4 . . . . Launcher 3 | . . . . . . . . . 6 3 . . . . Naked Turns . | . . . . . . . . . . . . . . . Heaviest Build 146 | 20 21 30 100 107 146 146 146 146 146 121 121 130 130 131 Greatest Support 90 | 20 20 22 22 22 32 32 10 10 10 60 45 36 36 90 Greatest Overweight (x) 39 | 6 1 1 4 4 4 14 14 14 38 32 9 3 12 39 Average Overweight (x) 7 | 2 1 1 2 4 3 4 14 14 26 4 2 3 4 4 Largest Inventory Capacity 25 | 10 10 10 25 25 25 25 25 25 25 25 25 25 25 25 Average Capacity 24 | 9 10 10 19 25 25 25 25 25 25 25 25 25 25 25 Most Carried 25 | 4 9 10 12 22 25 24 24 24 25 25 16 18 18 25 Average Carried 20 | 1 6 9 10 18 21 24 24 24 23 20 9 14 18 18 Final Capacity 25 | 10 10 10 25 25 25 25 25 25 25 25 25 25 25 25 Final Carried 24 | 3 9 10 11 21 24 24 24 24 24 11 16 18 18 20 Class Distribution -------------------- 53% | Hacker-Mutant 29% | Hacker-Tank 8% | Scavenger-Tank 4% | Hacker-Skirmisher Dominant Class ---------------- Hacker-Mutant | -10/Materials Hacker-Skirmisher | -9/Materials Hacker-Skirmisher | -9/Storage Hacker-Tank | -8/Materials Hacker-Tank | -7/Factory Hacker-Tank | -7/Lower Caves Hacker-Tank | -7/Lower Caves Hacker-Tank | -7/Data Miner Hacker-Mutant | -6/Proximity Caves Hacker-Mutant | -6/Factory Hacker-Tank | -6/Extension Scavenger-Tank | -6/Cetus Scavenger-Tank | -6/Archives Scavenger-Tank | -6/Hub_04(d) Resources | -11 -10 -9 -9 -8 -7 -7 -7 -7 -6 -6 -6 -6 -6 -6 ----------- Run | Yrd Mat Mat Sto Mat Fac Low Low Dat Pro Fac Ext Cet Arc Hub Matter Collected 4674 | 260 125 123 250 368 621 171 366 . 210 234 885 254 . 807 Remotely . | . . . . . . . . . . . . . . . Salvage Created 5817 | 157 273 262 650 459 840 50 167 . 7 46 1164 166 102 1474 Parts 291 | 9 16 21 43 19 37 2 7 . . 4 40 . 3 90 Haulers Intercepted 2 | . . . . . 1 . . . . . . . . 1 Recyclers Shooed 3 | 1 . . . . . . . . . 1 1 . . . Parts Field Recycled . | . . . . . . . . . . . . . . . Retrieved Matter . | . . . . . . . . . . . . . . . Parts Self-Destructed . | . . . . . . . . . . . . . . . Prevented . | . . . . . . . . . . . . . . . Kills | -11 -10 -9 -9 -8 -7 -7 -7 -7 -6 -6 -6 -6 -6 -6 ------- Run | Yrd Mat Mat Sto Mat Fac Low Low Dat Pro Fac Ext Cet Arc Hub Combat Hostiles Destroyed 104 | . 7 6 13 13 21 2 5 . 1 . 13 3 2 18 Guns 69 | . 7 6 13 7 6 . . . . . 11 2 1 16 Cannons 30 | . . . . 6 15 2 5 . 1 . . 1 . . AOE 3 | . . . . . . . . . . . 1 . 1 1 Classes Destroyed 15 | 3 2 1 2 . 3 . . . . . 2 . . 2 Worker 11 | 2 1 . . 2 1 . . . . 2 1 . . 2 Builder 8 | . . . . . . . . . . . 6 . . 2 Tunneler 5 | 3 . . . . . . . . . 1 . . . 1 Hauler 2 | . . . . . 1 . . . . . . . . 1 Recycler 6 | 1 . . 1 . . . . . . . 4 . . . Watcher 4 | . . . 2 1 . . . . . . . . . 1 Swarmer 15 | . 2 . 2 6 . . 2 . 1 . 2 . . . Grunt 51 | . 5 3 5 5 15 2 2 . . . 6 1 . 7 Brawler 3 | . . . 1 . 2 . . . . . . . . . Duelist 1 | . . . . . 1 . . . . . . . . . Protector 1 | . . . . . . . . . . . . . . 1 Sentry 20 | . . 3 5 2 1 . 1 . . . 3 . 2 3 Programmer 4 | . . . . . 2 . . . . . . . . 2 Behemoth 2 | . . . . . . . . . . . 2 . . . Cetus Guard 2 | . . . . . . . . . . . . 2 . . Lightning 5 | . . . . . . . . . . . . . . 5 Decomposer 1 | . . . . . . 1 . . . . . . . . Best Kill Streak 8 | 3 4 2 8 6 4 1 3 . 1 2 6 2 2 5 Combat Bots Only 4 | . 3 2 3 3 4 1 3 . 1 . 3 2 2 2 Max Kills in Single Turn 3 | 1 2 1 2 1 2 1 1 . 1 1 3 1 1 2 Gunslinging 1 | . . . 1 . . . . . . . . . . . Exploded 1 | . . . . . . . . . . . 1 . 1 1 Melee . | . . . . . . . . . . . . . . . Uniques/NPCs Destroyed . | . . . . . . . . . . . . . . . Combat | -11 -10 -9 -9 -8 -7 -7 -7 -7 -6 -6 -6 -6 -6 -6 -------- Run | Yrd Mat Mat Sto Mat Fac Low Low Dat Pro Fac Ext Cet Arc Hub Hostile Shots Fired 1115 | . 19 5 22 56 152 85 37 . 68 45 372 7 26 221 Missed 324 | . 8 3 2 11 40 25 16 . 12 11 127 4 13 52 Damage Taken 8476 | . 83 17 190 261 797 467 85 . 794 173 1764 61 543 3241 Core 1348 | . 3 . 16 22 83 10 16 . 338 20 226 . 68 546 Absorbed by Shields 1120 | . . . . 116 330 175 37 . 147 6 284 25 . . Redirected to Shielding 73 | . . . . . . . . . . . . . . 73 Ignored by Resistances 5726 | . 45 10 105 233 644 377 80 . 375 112 1264 50 607 1824 Regen/Repaired (Parts) 47 | . . . . 47 . . . . . . . . . . Core Remaining (%) 85 | 100 98 . 96 96 . . . . 36 . . . . . Volleys Fired 336 | 10 14 7 23 32 51 7 6 . 15 11 58 11 2 89 Largest 3 | 2 2 3 3 3 3 3 3 . 3 3 3 3 3 3 Hottest 215 | 100 40 69 76 94 144 144 144 . 144 69 131 113 91 215 Shots Fired 856 | 20 28 21 65 91 132 22 16 . 45 17 140 33 6 220 Gun 628 | 20 28 21 64 64 64 . . . . 9 132 26 6 194 Cannon 207 | . . . . 27 68 22 16 . 42 8 . 7 . 17 Launcher 21 | . . . 1 . . . . . 3 . 8 . . 9 Special . | . . . . . . . . . . . . . . . Kinetic 742 | . 28 21 64 91 132 22 16 . 42 17 99 33 6 171 Thermal 60 | 20 . . . . . . . . . . 33 . . 7 Explosive 21 | . . . 1 . . . . . 3 . 8 . . 9 Electromagnetic 33 | . . . . . . . . . . . . . . 33 Robot Hit Streak 42 | 14 22 31 36 35 23 5 8 . 6 20 33 19 8 42 Robot Miss Streak 7 | 1 1 . 2 2 2 3 2 . 7 . 3 2 2 2 Penetration Max 1 | . . . . . . . . . . . . 1 . 1 Secondary Targets 6 | . . . 2 . . . . . . . 3 . . 1 Max Gunslinging Chain 1 | . . . 1 . . . . . . . 1 . . 1 Shots Hit Robots 638 | 16 24 15 42 67 108 12 10 . 21 15 107 24 6 171 Core Hits 380 | 7 14 11 23 25 46 3 6 . 4 3 119 36 5 78 Critical Kills 11 | . . . . . . . . . . . . . . 11 Critical Parts Destroyed 13 | . . . . . . . . . . . . 2 . 11 Critical Strikes 35 | . . . . 1 3 1 . . . 1 1 4 . 24 Destroy 28 | . . . . . . . . . . . 1 4 . 23 Blast 6 | . . . . 1 3 1 . . . 1 . . . . Corrupt 1 | . . . . . . . . . . . . . . 1 Melee Attacks . | . . . . . . . . . . . . . . . Impact . | . . . . . . . . . . . . . . . Slashing . | . . . . . . . . . . . . . . . Piercing . | . . . . . . . . . . . . . . . Sneak Attacks . | . . . . . . . . . . . . . . . Combat Hostiles . | . . . . . . . . . . . . . . . Follow-up Attacks . | . . . . . . . . . . . . . . . Damage Inflicted 15664 | 198 331 200 687 1309 2504 302 264 . 497 377 3191 745 153 4906 Guns 10045 | 198 309 200 635 796 872 . . . . 107 2502 605 153 3668 Cannons 3465 | . . . . 497 1470 302 264 . 420 222 . 140 . 150 Explosions 1808 | . . . . . 75 . . . 77 . 609 . . 1047 Melee . | . . . . . . . . . . . . . . . Ramming 346 | . 22 . 52 16 87 . . . . 48 80 . . 41 Kinetic 12010 | . 309 200 635 1293 2342 302 264 . 420 329 1546 745 153 3472 Thermal 1304 | 198 . . . . . . . . . . 956 . . 150 Explosive 1534 | . . . . . 75 . . . 77 . 609 . . 773 Electromagnetic 470 | . . . . . . . . . . . . . . 470 Impact . | . . . . . . . . . . . . . . . Slashing . | . . . . . . . . . . . . . . . Piercing . | . . . . . . . . . . . . . . . Highest Corruption 26 | . 2 . 1 . 4 4 4 4 4 . 1 1 1 26 Average Corruption 4 | . 1 . 1 . 3 4 4 4 4 . 1 1 1 9 Corruption Purged . | . . . . . . . . . . . . . . . Corruption Blocked . | . . . . . . . . . . . . . . . Effects 321 | . 2 . 2 . 18 14 37 3 188 . 1 2 2 52 Message Errors 89 | . 1 . . . 3 3 8 2 58 . . 1 1 12 Matter Fused 53 | . 1 . . . 4 3 7 1 25 . . . . 12 Heat Flow Errors 39 | . . . . . 1 2 6 . 19 . . 1 . 10 Energy Discharges 25 | . . . . . . . 2 . 19 . . . 1 3 Parts Rejected 3 | . . . . . 1 . . . . . 1 . . 1 Parts Fused 4 | . . . . . . . . . 4 . . . . . Data Loss (minor) 63 | . . . 1 . 7 4 7 . 40 . . . . 4 Data Loss (major) 17 | . . . . . 1 1 3 . 9 . . . . 3 Misfires 9 | . . . . . . 1 2 . 6 . . . . . Alerts 10 | . . . . . . . 2 . 6 . . . . 2 Weapon Failures 9 | . . . 1 . 1 . . . 2 . . . . 5 Overload Shots . | . . . . . . . . . . . . . . . Overflow Damage 250 | . . . . 4 38 53 15 . . 28 30 . . 82 Projectiles 116 | . . . . 4 24 53 15 . . 20 . . . . Explosions 56 | . . . . . . . . . . . . . . 56 Melee 78 | . . . . . 14 . . . . 8 30 . . 26 Knockbacks 24 | . . . . 6 8 3 . . 3 2 . 1 . 1 Impact 2 | . . . . . . . . . . 1 . . . 1 Kinetic 19 | . . . . 4 7 3 . . 3 1 . 1 . . Secondary 3 | . . . . 2 1 . . . . . . . . . Self-Inflicted Damage 489 | . 11 . 25 8 43 . . . 16 24 62 . . 300 Shots 13 | . . . . . . . . . 1 . 2 . . 10 Rammed 11 | . 2 . 3 1 2 . . . . 1 2 . . . Targets Rammed 12 | . 2 . 3 1 2 . . . . 1 2 . . 1 Kicked 1 | . . . . . . . . . . . . . . 1 Crushed . | . . . . . . . . . . . . . . . Highest Temperature 800 | 156 2 3 9 156 513 330 302 . 800 5 266 185 . 751 Average Temperature 133 | 63 2 3 7 47 132 132 114 . 236 5 62 97 . 229 Received Heat Transfer 2835 | . 60 6 90 175 443 185 54 . . 84 1018 . 36 684 Effects 45 | . . . . . 4 . 1 . 26 . . . . 14 Shutdowns 7 | . . . . . 1 . . . 4 . . . . 2 Energy Bleed 7 | . . . . . 1 . . . 5 . . . . 1 Interference 10 | . . . . . 1 . 1 . 4 . . . . 4 Matter Decay 4 | . . . . . . . . . 2 . . . . 2 Short Circuit 2 | . . . . . . . . . 1 . . . . 1 Damage (minor) 7 | . . . . . 1 . . . 3 . . . . 3 Damage (major) 4 | . . . . . . . . . 4 . . . . . Damage (core) 4 | . . . . . . . . . 3 . . . . 1 Siege Activations . | . . . . . . . . . . . . . . . Robots Corrupted 2 | . . . . . . . . . . . . . . 2 Combat Hostiles 1 | . . . . . . . . . . . . . . 1 Parts Fried 4 | . . . . . . . . . . . 1 . . 3 Impact Corruptions 5 | . . . . . 1 . . . . 1 2 . . 1 Robots Melted 1 | . . . . . . . . . . . 1 . . . Combat Hostiles 1 | . . . . . . . . . . . 1 . . . Parts Melted 2 | 1 . . . . . . . . . . 1 . . . Heat Transferred 3017 | 592 . . . . . . . . . . 2125 . . 300 Parts Sabotaged . | . . . . . . . . . . . . . . . Parts Stolen . | . . . . . . . . . . . . . . . Parts Stripped . | . . . . . . . . . . . . . . . Power Chain Reactions . | . . . . . . . . . . . . . . . Alert | -11 -10 -9 -9 -8 -7 -7 -7 -7 -6 -6 -6 -6 -6 -6 ------- Run | Yrd Mat Mat Sto Mat Fac Low Low Dat Pro Fac Ext Cet Arc Hub Peak Influence 536 | 30 135 241 536 347 275 . . . . 42 273 200 137 236 Initial 72 | . 14 22 72 70 40 . . . . . 15 18 31 5 Average 91 | 10 60 131 230 137 93 . . . . 12 100 100 52 60 Maximum Alert Level 2 | . . 1 2 1 1 . . . . . 1 1 . 1 Low Security (%) 89 | 100 100 93 53 82 98 . . . . 100 79 81 100 93 Level 1 9 | . . 6 26 17 1 . . . . . 20 18 . 6 Level 2 1 | . . . 20 . . . . . . . . . . . Level 3 . | . . . . . . . . . . . . . . . Level 4 . | . . . . . . . . . . . . . . . Level 5 . | . . . . . . . . . . . . . . . High Security . | . . . . . . . . . . . . . . . Max Security . | . . . . . . . . . . . . . . . Squads Dispatched 23 | . 1 1 1 4 8 . . . . . 2 2 . 4 Investigation 8 | . 1 . . . 3 . . . . . 2 2 . . Extermination 4 | . . . . . 2 . . . . . . . . 2 Reinforcement 5 | . . 1 1 1 . . . . . . . . . 2 Assault . | . . . . . . . . . . . . . . . Garrison 6 | . . . . 3 3 . . . . . . . . . Intercept . | . . . . . . . . . . . . . . . Searches Triggered . | . . . . . . . . . . . . . . . Data Miner Redirects 1 | . . . . . . . . . . . 1 . . . Construction Impeded . | . . . . . . . . . . . . . . . Haulers Reinforced . | . . . . . . . . . . . . . . . Active Scanning Responses . | . . . . . . . . . . . . . . . Cargo Convoy Interrupts . | . . . . . . . . . . . . . . . Stealth | -11 -10 -9 -9 -8 -7 -7 -7 -7 -6 -6 -6 -6 -6 -6 --------- Run | Yrd Mat Mat Sto Mat Fac Low Low Dat Pro Fac Ext Cet Arc Hub Distress Signals 11 | . 2 1 1 1 1 . . . . 1 1 2 . 1 Communications Jammed 1 | . . . . . 1 . . . . . . . . . Distress Signals . | . . . . . . . . . . . . . . . Times Spotted 190 | . 10 7 16 27 30 5 5 . 3 2 28 13 13 31 Peak Tracking Total 14 | . 4 4 5 5 4 4 3 . 2 1 5 5 14 6 Tactical Retreats 4 | . . . . 1 1 . . . . . 1 . 1 . Traps | -11 -10 -9 -9 -8 -7 -7 -7 -7 -6 -6 -6 -6 -6 -6 ------- Run | Yrd Mat Mat Sto Mat Fac Low Low Dat Pro Fac Ext Cet Arc Hub Traps Triggered 11 | . 2 . 4 1 2 . . . . . 2 . . . Indirectly . | . . . . . . . . . . . . . . . Trap Hack Attempts . | . . . . . . . . . . . . . . . Triggered . | . . . . . . . . . . . . . . . Disarmed . | . . . . . . . . . . . . . . . Reprogrammed . | . . . . . . . . . . . . . . . Reused . | . . . . . . . . . . . . . . . Traps Extracted . | . . . . . . . . . . . . . . . Installed . | . . . . . . . . . . . . . . . Triggered 1 | . . . . . . . 1 . . . . . . . Machines | -11 -10 -9 -9 -8 -7 -7 -7 -7 -6 -6 -6 -6 -6 -6 ---------- Run | Yrd Mat Mat Sto Mat Fac Low Low Dat Pro Fac Ext Cet Arc Hub Machines Disabled 20 | . . . 1 . 2 . . . . . . . 2 15 Max in Single Turn 10 | . . . 1 . 2 . . . . . . . . 10 Garrison Access 1 | . . . . . . . . . . . . . . 1 Network Hub 2 | . . . . . . . . . . . . . . 2 Machines Repaired . | . . . . . . . . . . . . . . . Machines Dismantled . | . . . . . . . . . . . . . . . Machines Sabotaged . | . . . . . . . . . . . . . . . Overloaded Fab Kills . | . . . . . . . . . . . . . . . Hacking | -11 -10 -9 -9 -8 -7 -7 -7 -7 -6 -6 -6 -6 -6 -6 --------- Run | Yrd Mat Mat Sto Mat Fac Low Low Dat Pro Fac Ext Cet Arc Hub Machines Accessed 29 | . 5 1 2 4 4 . . 4 . . 4 2 . 3 Terminals 21 | . 5 1 1 3 3 . . . . . 4 2 . 2 Fabricators . | . . . . . . . . . . . . . . . Repair Stations 1 | . . . . 1 . . . . . . . . . . Recycling Units 1 | . . . 1 . . . . . . . . . . . Scanalyzers . | . . . . . . . . . . . . . . . Garrison Access 2 | . . . . . 1 . . . . . . . . 1 Total Hacks 78 | . 12 2 4 7 8 . . 28 . . 8 6 . 3 Successful 57 | . 9 1 2 5 3 . . 28 . . 2 4 . 3 Failed 21 | . 3 1 2 2 5 . . . . . 6 2 . . Catastrophic 3 | . . . . . . . . . . . 3 . . . Database Lockouts . | . . . . . . . . . . . . . . . Manual 26 | . 8 2 3 4 4 . . . . . . 2 1 2 Terminals 44 | . 12 2 3 5 6 . . . . . 8 6 . 2 Fabricators . | . . . . . . . . . . . . . . . Repair Stations 2 | . . . . 2 . . . . . . . . . . Recycling Units 1 | . . . 1 . . . . . . . . . . . Scanalyzers . | . . . . . . . . . . . . . . . Garrison Access 3 | . . . . . 2 . . . . . . . . 1 Terminal Hacks 47 | . 4 . 1 3 3 . . 28 . . 2 4 . 2 Record 15 | . . . . . . . . 11 . . . 4 . . Part Schematic 9 | . . . . . . . . 9 . . . . . . Robot Schematic 5 | . . . . . . . . 5 . . . . . . Prototype ID Bank 3 | . . . . . . . . 3 . . . . . . Emergency Access Points 1 | . . . . . 1 . . . . . . . . . Scanalyzer Index 1 | . . . . . 1 . . . . . . . . . Zone Layout 13 | . 4 . 1 3 1 . . . . . 2 . . 2 Fabricator Hacks . | . . . . . . . . . . . . . . . Repair Station Hacks 2 | . . . . 2 . . . . . . . . . . Scan Component 1 | . . . . 1 . . . . . . . . . . Repair 1 | . . . . 1 . . . . . . . . . . Recycling Unit Hacks 1 | . . . 1 . . . . . . . . . . . Report Inventory 1 | . . . 1 . . . . . . . . . . . Scanalyzer . | . . . . . . . . . . . . . . . Garrison Access Hacks 1 | . . . . . . . . . . . . . . 1 Seal Access 1 | . . . . . . . . . . . . . . 1 Unauthorized Hacks 6 | . 5 1 . . . . . . . . . . . . Terminals 6 | . 5 1 . . . . . . . . . . . . Assimilate 1 | . . 1 . . . . . . . . . . . . Botnet 5 | . 5 . . . . . . . . . . . . . Fabricators . | . . . . . . . . . . . . . . . Repair Stations . | . . . . . . . . . . . . . . . Recycling Units . | . . . . . . . . . . . . . . . Scanalyzers . | . . . . . . . . . . . . . . . Garrison Access . | . . . . . . . . . . . . . . . Data Cores Recovered . | . . . . . . . . . . . . . . . Used . | . . . . . . . . . . . . . . . Hacking Detections 17 | . 3 1 1 3 2 . . . . . 2 3 . 2 Full Trace Events 7 | . 1 . . . 2 . . . . . 2 2 . . Feedback Events . | . . . . . . . . . . . . . . . Feedback Blocked . | . . . . . . . . . . . . . . . Robot Schematics Acquired 5 | . . . . . . . . 5 . . . . . . Robots Built . | . . . . . . . . . . . . . . . Authchips . | . . . . . . . . . . . . . . . Time . | . . . . . . . . . . . . . . . Total Robot Build Rating . | . . . . . . . . . . . . . . . Part Schematics Acquired 9 | . . . . . . . . 9 . . . . . . Parts Built . | . . . . . . . . . . . . . . . Authchips . | . . . . . . . . . . . . . . . Time . | . . . . . . . . . . . . . . . Total Part Build Rating . | . . . . . . . . . . . . . . . Parts Repaired 1 | . . . . 1 . . . . . . . . . . Time 13 | . . . . 13 . . . . . . . . . . Parts Recycled . | . . . . . . . . . . . . . . . Recycled Matter . | . . . . . . . . . . . . . . . Retrieved Matter . | . . . . . . . . . . . . . . . Retrieved Components . | . . . . . . . . . . . . . . . Parts Scanalyzed . | . . . . . . . . . . . . . . . Part Schematics Acquired . | . . . . . . . . . . . . . . . Parts Damaged . | . . . . . . . . . . . . . . . Bothacking | -11 -10 -9 -9 -8 -7 -7 -7 -7 -6 -6 -6 -6 -6 -6 ------------ Run | Yrd Mat Mat Sto Mat Fac Low Low Dat Pro Fac Ext Cet Arc Hub Used RIF Installer . | . . . . . . . . . . . . . . . Robots Hacked . | . . . . . . . . . . . . . . . Non-combat . | . . . . . . . . . . . . . . . Combat . | . . . . . . . . . . . . . . . Robot Hacks Applied . | . . . . . . . . . . . . . . . Relay Couplers Released . | . . . . . . . . . . . . . . . Fabnet Peak Effective % . | . . . . . . . . . . . . . . . Robots Rewired . | . . . . . . . . . . . . . . . Allies Hacked . | . . . . . . . . . . . . . . . Hacks Repelled . | . . . . . . . . . . . . . . . Allies | -11 -10 -9 -9 -8 -7 -7 -7 -7 -6 -6 -6 -6 -6 -6 -------- Run | Yrd Mat Mat Sto Mat Fac Low Low Dat Pro Fac Ext Cet Arc Hub Total Allies 37 | . . . 10 . . . . . 1 . 21 5 . . Largest Group 10 | . . . 10 9 . . . . 1 1 9 10 10 . Highest-Rated Group 777 | . . . 88 80 . . . . 96 89 420 777 774 . Highest-Rated Ally 159 | . . . 16 16 . . . . 96 89 159 159 159 . Total Orders . | . . . . . . . . . . . . . . . Ally Attacks 290 | . . . 7 45 . . . . 15 6 100 88 29 . Total Damage 5720 | . . . 80 374 . . . . 363 236 1669 2162 836 . Kills 40 | . . . 2 4 . . . . 2 2 15 12 3 . Allies Corrupted . | . . . . . . . . . . . . . . . Allies Melted . | . . . . . . . . . . . . . . . Intel | -11 -10 -9 -9 -8 -7 -7 -7 -7 -6 -6 -6 -6 -6 -6 ------- Run | Yrd Mat Mat Sto Mat Fac Low Low Dat Pro Fac Ext Cet Arc Hub Robot Analysis Total . | . . . . . . . . . . . . . . . Derelict Logs Recovered 2 | . . . . . . . . . 2 . . . . . Drone Launches . | . . . . . . . . . . . . . . . Drone Recoveries . | . . . . . . . . . . . . . . . Exploration | -11 -10 -9 -9 -8 -7 -7 -7 -7 -6 -6 -6 -6 -6 -6 ------------- Run | Yrd Mat Mat Sto Mat Fac Low Low Dat Pro Fac Ext Cet Arc Hub Turns Passed 22001 | 148 432 331 422 1023 1743 798 1675 282 11035 695 1087 586 173 1571 Spaces Moved 6196 | 54 377 160 240 573 1029 520 572 98 899 208 620 283 103 460 Core 681 | 30 . . . . . . . . 617 18 5 . . 11 Treads 155 | . . . . . . . . . . . 22 . . 133 Legs 320 | . . . . . . . . . . 120 . . . 200 Wheels 5040 | 24 377 160 240 573 1029 520 572 98 282 70 593 283 103 116 Hover . | . . . . . . . . . . . . . . . Flight . | . . . . . . . . . . . . . . . Fastest Speed 50 | 50 95 95 100 145 128 143 290 290 275 125 110 131 131 170 Average Speed 324 | 188 95 98 124 145 141 149 290 290 1223 296 134 131 158 261 Slowest Speed 2000 | 350 95 100 145 145 143 290 290 290 1950 1650 500 131 260 2000 Overloaded Moves . | . . . . . . . . . . . . . . . Propulsion Burnouts . | . . . . . . . . . . . . . . . Robots Hopped 3 | . . . . . . . . . . . 3 . . . Cave-ins Triggered . | . . . . . . . . . . . . . . . Exploration Rate (%) 51 | 4 50 19 43 54 27 60 68 70 75 6 75 78 87 53 Regions Visited 14 Branch Regions 9 Pre-discovered Areas 1 | . . . . . . . . 1 . . . . . . Known Exits Taken 14 | 1 1 1 1 1 1 1 1 1 1 1 1 1 1 . Unknown Exits Taken . | . . . . . . . . . . . . . . . Scrap Searched 7 | . . . . . . 1 2 . 4 . . . . . Spaces Dug . | . . . . . . . . . . . . . . . Terrain Destroyed 452 | . . . 4 5 19 7 1 . 26 . . 2 . 388 Melee . | . . . . . . . . . . . . . . . Projectile 63 | . . . . 5 1 7 1 . 9 . . 2 . 38 AOE 389 | . . . 4 . 18 . . . 17 . . . . 350 Terrain Rammed . | . . . . . . . . . . . . . . . Walls Destroyed . | . . . . . . . . . . . . . . . Machines Disabled . | . . . . . . . . . . . . . . . Actions | -11 -10 -9 -9 -8 -7 -7 -7 -7 -6 -6 -6 -6 -6 -6 --------- Run | Yrd Mat Mat Sto Mat Fac Low Low Dat Pro Fac Ext Cet Arc Hub Total 7419 | 80 423 326 313 695 1208 526 577 97 921 275 747 474 109 648 Wait 563 | . 17 131 19 63 94 . . . . 22 13 164 2 38 Move 6177 | 53 376 159 239 572 1028 519 571 97 898 207 614 282 102 460 Hop 2 | . . . . . . . . . . . 2 . . . Pick Up 134 | 10 9 12 5 18 14 . . . 3 8 19 8 . 28 Fast Attach 1 | . . 1 . . . . . . . . . . . . Attach 109 | 7 3 5 4 6 12 . . . 3 19 17 7 . 26 Detach 7 | . . 1 1 . 1 . . . . 1 2 1 . . Swap 1 | . . . 1 . . . . . . . . . . . Drop 42 | . 2 10 2 3 6 . . . 2 6 4 1 . 6 Fire 336 | 10 14 7 23 32 51 7 6 . 15 11 58 11 2 89 Melee . | . . . . . . . . . . . . . . . Ram 11 | . 2 . 3 1 2 . . . . 1 2 . . . Kick 1 | . . . . . . . . . . . . . . 1 Crush . | . . . . . . . . . . . . . . . Escape Stasis 32 | . . . 16 . . . . . . . 16 . . . Rewire 3 | . . . . . . . . . . . . . 3 . Trap . | . . . . . . . . . . . . . . . Miscellaneous . | . . . . . . . . . . . . . . . Route ------- -11/Scrapyard -10/Materials (discovered 3 exits: *Mat / *Min x2) -9/Materials (discovered 2 exits: *Min / *Sto) -9/Storage -8/Materials -7/Factory -7/Lower Caves -7/Lower Caves (discovered 2 exits: *Fac / *Dat) -7/Data Miner -6/Proximity Caves -6/Factory (discovered 4 exits: Fac / Low / *Ext x2) -6/Extension (discovered 3 exits: *Fac x2 / *Cet) -6/Cetus (discovered 3 exits: *Fac x2 / *Arc) -6/Archives (discovered 2 exits: *Hub x2) -6/Hub_04(d) (discovered 1 exit: *Fac) History --------- Turn | Location | Event 68 | -11/Scrapyard | Identified exit to Materials 68 | -11/Scrapyard | Discovered exit to Materials (range 12) 149 | -11/Scrapyard | Entered Materials 149 | -10/Materials | Evolved 1 slot: Utility x1 150 | -10/Materials | Identified exit to Mines 150 | -10/Materials | Discovered exit to Mines (range 7) 252 | -10/Materials | Discovered exit to Mines (range 15) 303 | -10/Materials | Build established: Hacker-Mutant 444 | -10/Materials | Identified exit to Materials 444 | -10/Materials | Discovered exit to Materials (range 8) 581 | -10/Materials | Entered another Materials area 581 | -9/Materials | Evolved 2 slots: Utility x1, Weapon x1 889 | -9/Materials | Identified exit to Storage 889 | -9/Materials | Discovered exit to Storage (range 15) 908 | -9/Materials | Build established: Hacker-Skirmisher 909 | -9/Materials | Identified exit to Mines 909 | -9/Materials | Discovered exit to Mines (range 13) 912 | -9/Materials | Entered Storage 1250 | -9/Storage | Assisted by bots powering up and referring to "LRC-V3" 1279 | -9/Storage | Identified exit to Materials 1279 | -9/Storage | Discovered exit to Materials (range 15) 1334 | -9/Storage | Entered Materials 1334 | -8/Materials | Accompanied by 9 allies 1334 | -8/Materials | Evolved 2 slots: Utility x2 1484 | -8/Materials | Repaired Ion Engine 1544 | -8/Materials | Build established: Commander-Skirmisher 1645 | -8/Materials | Lost 4 allies 1734 | -8/Materials | Garrison activated, responded to threat 1789 | -8/Materials | Lost 4 allies 2274 | -8/Materials | Build established: Hacker-Tank 2311 | -8/Materials | Identified exit to Factory 2311 | -8/Materials | Discovered exit to Factory (range 16) 2357 | -8/Materials | Entered Factory 2357 | -7/Factory | Evolved 2 slots: Propulsion x1, Utility x1 4087 | -7/Factory | Identified exit to Lower Caves 4087 | -7/Factory | Discovered exit to Lower Caves (range 9) 4100 | -7/Factory | Entered Lower Caves 4640 | -7/Lower Caves | Encountered a Warlord checkpoint 4822 | -7/Lower Caves | Spotted B-75 Beast 4863 | -7/Lower Caves | Identified exit to Lower Caves 4863 | -7/Lower Caves | Discovered exit to Lower Caves (range 11) 4898 | -7/Lower Caves | Entered another Lower Caves area 4899 | -7/Lower Caves | Encountered a Warlord checkpoint 5209 | -7/Lower Caves | Identified exit to Factory 5209 | -7/Lower Caves | Discovered exit to Factory (range 6) 5890 | -7/Lower Caves | Attracted the attention of an 0b10 checkpoint 6561 | -7/Lower Caves | Identified exit to Data Miner 6561 | -7/Lower Caves | Discovered exit to Data Miner (range 3) 6573 | -7/Lower Caves | Entered Data Miner 6573 | -7/Data Miner | Identified exit to Proximity Caves 6573 | -7/Data Miner | Discovered exit to Proximity Caves (range 6) 6629 | -7/Data Miner | Met Data Miner 6701 | -7/Data Miner | Learned location of Section 7 (-2) 6701 | -7/Data Miner | Acquired the access code to Warlord's prototype stash 6747 | -7/Data Miner | Received God Mode back door access code from Data Miner 6855 | -7/Data Miner | Entered Proximity Caves 7713 | -6/Proximity Caves | Escorted by Enhanced Grunt 7728 | -6/Proximity Caves | Core integrity fell below 50% 7764 | -6/Proximity Caves | Lost 5 parts (1p1n2u1w) 8018 | -6/Proximity Caves | Build established: Hacker-Mutant 9372 | -6/Proximity Caves | Learned 4 Factory zone layouts 17692 | -6/Proximity Caves | Discovered exit to Factory (range 14) 17890 | -6/Proximity Caves | Entered Factory 17890 | -6/Factory | Accompanied by 1 ally 17890 | -6/Factory | Evolved 2 slots: Utility x2 17891 | -6/Factory | Identified exit to Extension 17892 | -6/Factory | Identified exit to Lower Caves 17892 | -6/Factory | Identified exit to Factory 18394 | -6/Factory | Lost 4 parts (2u2w) 18555 | -6/Factory | Discovered exit to Extension (range 11) 18585 | -6/Factory | Entered Extension 18585 | -6/Extension | Accompanied by 1 ally 18631 | -6/Extension | Rescued a captive Derelict 18658 | -6/Extension | Build established: Hacker-Tank 18671 | -6/Extension | Rescued a captive Derelict 18713 | -6/Extension | Rescued a captive Derelict 18716 | -6/Extension | Rescued a captive Derelict 18784 | -6/Extension | Rescued a captive Derelict 18792 | -6/Extension | Rescued a captive Derelict 18810 | -6/Extension | Rescued a captive Derelict 18882 | -6/Extension | Rescued a captive Derelict 18883 | -6/Extension | Rescued a captive Derelict 18888 | -6/Extension | Spotted B-75 Beast 18926 | -6/Extension | Spotted B-75 Beast 18947 | -6/Extension | Destroyed B-75 Beast 18963 | -6/Extension | Lost 8 allies 19027 | -6/Extension | Lost 10 parts (3n4u3w) 19035 | -6/Extension | Destroyed B-75 Beast 19085 | -6/Extension | Disrupted transfer network 19179 | -6/Extension | Discovered exit to Factory (range 3) 19215 | -6/Extension | Lost 4 parts (1p2u1w) 19285 | -6/Extension | Rescued a captive Derelict 19286 | -6/Extension | Rescued a captive Derelict 19319 | -6/Extension | Rescued a captive Derelict 19320 | -6/Extension | Rescued a captive Derelict 19363 | -6/Extension | Rescued a captive Derelict 19367 | -6/Extension | Rescued A7 19374 | -6/Extension | Lost 3 allies 19375 | -6/Extension | Rescued a captive Derelict 19375 | -6/Extension | Rescued a captive Derelict 19440 | -6/Extension | Incoming investigation squad redirected 19451 | -6/Extension | Rescued a captive Derelict 19455 | -6/Extension | Rescued a captive Derelict 19533 | -6/Extension | Build established: Scavenger-Mutant 19579 | -6/Extension | Rescued a captive Derelict 19580 | -6/Extension | Rescued a captive Derelict 19621 | -6/Extension | Discovered exit to Factory (range 10) 19622 | -6/Extension | Identified exit to Cetus 19622 | -6/Extension | Discovered exit to Cetus (range 6) 19672 | -6/Extension | Entered Cetus 19672 | -6/Cetus | Accompanied by 8 allies (A7) 19677 | -6/Cetus | Acquired a Cetus Manufacturing Module code from A7 19695 | -6/Cetus | Spotted Cetus Guard 19695 | -6/Cetus | Spotted Cetus Guard 19697 | -6/Cetus | Spotted Cetus Guard 19699 | -6/Cetus | Spotted Cetus Guard 19705 | -6/Cetus | Allies destroyed Cetus Guard 19713 | -6/Cetus | Destroyed Cetus Guard 19719 | -6/Cetus | Allies destroyed Cetus Guard 19720 | -6/Cetus | Destroyed Cetus Guard 19747 | -6/Cetus | Lost 3 allies 19773 | -6/Cetus | Discovered exit to Factory (range 16) 19945 | -6/Cetus | Started Cetus Manufacturing Module 19970 | -6/Cetus | Manufactured an Enhanced Grunt 19986 | -6/Cetus | Build established: Scavenger-Tank 19995 | -6/Cetus | Manufactured an Enhanced Grunt 20020 | -6/Cetus | Manufactured an Enhanced Grunt 20045 | -6/Cetus | Manufactured an Enhanced Grunt 20070 | -6/Cetus | Manufactured an Enhanced Grunt 20114 | -6/Cetus | Identified exit to Archives 20114 | -6/Cetus | Discovered exit to Archives (range 15) 20138 | -6/Cetus | Spotted Cetus Guard 20138 | -6/Cetus | Spotted Cetus Guard 20143 | -6/Cetus | Spotted Cetus Guard 20144 | -6/Cetus | Allies destroyed Cetus Guard 20145 | -6/Cetus | Spotted Cetus Guard 20150 | -6/Cetus | Discovered exit to Factory (range 16) 20152 | -6/Cetus | Allies destroyed Cetus Guard 20155 | -6/Cetus | Allies destroyed Cetus Guard 20157 | -6/Cetus | Allies destroyed Cetus Guard 20161 | -6/Cetus | Met Revision 17 20258 | -6/Cetus | Entered Archives 20258 | -6/Archives | Accompanied by 10 allies (A7) 20303 | -6/Archives | Met Zhirov 20309 | -6/Archives | Reinforcements dispatched to Archives 20323 | -6/Archives | Unable to access archive contents 20336 | -6/Archives | Identified exit to Hub_04(d) 20336 | -6/Archives | Discovered exit to Hub_04(d) (range 14) 20354 | -6/Archives | Reinforcements dispatched to Archives 20374 | -6/Archives | Zhirov detonated Archives 20392 | -6/Archives | Discovered exit to Hub_04(d) (range 16) 20405 | -6/Archives | Lost 4 parts (2n2u) 20405 | -6/Archives | Lost 9 allies 20431 | -6/Archives | Entered Hub_04(d) 20602 | -6/Hub_04(d) | Network Hub disabled 21028 | -6/Hub_04(d) | Spotted Lightning 21031 | -6/Hub_04(d) | Spotted Lightning 21032 | -6/Hub_04(d) | Spotted Lightning 21069 | -6/Hub_04(d) | Core integrity fell below 50% 21069 | -6/Hub_04(d) | System corruption reached 10% 21075 | -6/Hub_04(d) | Destroyed Lightning 21100 | -6/Hub_04(d) | Destroyed Lightning 21113 | -6/Hub_04(d) | Lost 5 parts (3n1u1w) 21113 | -6/Hub_04(d) | Destroyed Lightning 21225 | -6/Hub_04(d) | Network Hub disabled 21266 | -6/Hub_04(d) | Found Prototype Device 21267 | -6/Hub_04(d) | Identified Exp. Phase Shifter 21269 | -6/Hub_04(d) | Found Prototype Device 21270 | -6/Hub_04(d) | Identified Exp. EM Disruption Field 21730 | -6/Hub_04(d) | Discovered exit to Factory (range 15) 21838 | -6/Hub_04(d) | Spotted Lightning 21838 | -6/Hub_04(d) | Spotted Lightning 21838 | -6/Hub_04(d) | Spotted Lightning 21863 | -6/Hub_04(d) | Destroyed Lightning 21900 | -6/Hub_04(d) | Destroyed Lightning 21952 | -6/Hub_04(d) | Lost 10 parts (1p2n3u4w) 21963 | -6/Hub_04(d) | Core integrity fell below 20% 22002 | -6/Hub_04(d) | Destroyed by G-50 Soldier with Heavy Laser Last Messages --------------- 21992_ Power failure, Quantum Reactor shutdown. 21992_ Proton Cannon broken. 21992_ Overheating: Short circuit. 21992_ System corrupted: Matter fused (-8). 21993_ Overheating: Energy bleed (-63). 21993_ K-01 Serf collects debris. 21994_ The unstable cave ceiling collapses. 21995_ Penetrated by EMDS Slug. 21995_ Broken Proton Cannon destroyed. 21996_ K-01 Serf collects debris. 21996_ Critical hit (Burn: +37). 21997_ Overheating: Energy Well damaged (-28). 21997_ K-01 Serf collects debris. 21998_ Overheating: Matter decay (-10). 21998_ K-01 Serf collects debris. 22000_ Power failure, Quantum Reactor shutdown. 22000_ Overheating: Huge Storage Unit damaged (-27). 22001_ Overheating: System interference. 22001_ Hpw. Shock Rifle temporarily disabled. 22001_ K-01 Serf collects debris. Map ----- +----------------------------------------------------+ | | | | | | | | | | | | | | | | | | | | | | | | | | | ?????????????????????????????????????????????????? | | ?????????????????????????????????????????????????? | | ?????????????????????????????????????????????????? | | ?????????????????????????????????????????????????? | | ???????????????????????????????????????????####??? | | ??????????????????????#???????????????????? #??? | | ??????????????????????# ??????????????????# < #??? | | ??????????????????????# ??????????????????# #??? | | ??????????????????????# #????# #??# #??? | | ????????????????#######;###??# #??# #??? | | ????????????????# #??# #??# +??? | | ????????????????# [=#??#####+######## #??? | | ????????????????# !@### # #??? | | ???????????????## =!= #??? | | ??????????? ; gh%k = %= *%#??? | | ??????????" # k[ ### ####### #### | | ???????????" ? # ## # # | | ???????????"??? # k ## # # | | ??????????????? # ! # # | | ??????????????? ; ## # # | | ?????????????? # ! # # ## ##"##### + | | ????????????? # ######## # | | ????????????? ? # # | | ??????????????? # ## T # "" | | ???????????????## k ## # "" | | ????????????????# ## ""###"########### | | ????????????????###+"######## ####???????###???? | | ???????????????## # # ############ ???? | | ??????????????? # # ## # ??## | | ??????????????? T + """" # ## # ??+ | | ???????????????## # """" # ## # ??# | | ???????????????### ## """" # ## """"# ??# | | ??????????????? # ## """" # ## """"# ??" | | ??????????????? + ## # ## """"# ??# | | ???????????????" # ######### ## """"# ??# | | ???????????????" # #??????## ## # ??# | | ???????????????" # #??????# #####+##+####### | +----------------------------------------------------+ Best States ------------- Heat Dissipation 85 Energy Generation 25 Energy Capacity 700 Matter Stores 450 Matter Capacity 450 Sight Range 16 Robot Scan Range 15 Terrain Scan Range 16 Terrain Scan Density 85 Jamming Range 12 Additional Mass Support 9 Armor Coverage 825 Resistance: KI 35 Resistance: TH 35 Resistance: EX 60 Resistance: EM 100 Resistance: I 35 Resistance: S 35 Resistance: P 35 Weapon Shielding 66 Phase Shifting 20 Evasion (%) 60 Recoil Reduction 3 Salvage Targeting 2 Offensive Hacking 20 Item Schematics ----------------- Combat Drone Bay | -7/Data Miner | Free Lgt. Regenerative Plating | -7/Data Miner | Free Cld. Aerolev Unit | -7/Data Miner | Free Imp. Heavy Machine Gun | -7/Data Miner | Free Exp. Power Shielding | -7/Data Miner | Free Gyrokinetic Inverter | -7/Data Miner | Free Imp. Coolant Injector | -7/Data Miner | Free Adv. Plasma Cannon | -7/Data Miner | Free Railgun | -7/Data Miner | Free Robot Schematics ------------------ A-15 Conveyor | -7/Data Miner | Free R-10 Processor | -7/Data Miner | Free Y-54 Guardian | -7/Data Miner | Free B-60 Warrior | -7/Data Miner | Free M-22 Extractor | -7/Data Miner | Free Fabricated ------------ Nothing Alien Tech Used ----------------- None Achievements -------------- Project G-00 Revising The Future Superinsulated Challenges ------------ None Game ------ Seed ANTSC-182E Manual? 1 Play Time 01:30:44 Cumulative 22.5 hours Start 2024.06.05 @ 19:20:49 End 2024.06.05 @ 21:07:00 Sessions 1 Manual Loads 0 Difficulty Explorer Special Mode None Game No. 20 Rogue 0 Adventurer 0 Explorer 20 Win Type - Total 0 Types 0/0/0/0/0/0/0/0/0 Lore% 20 Gallery% 43 Achievement% 37 Wizard Run 0 Options --------- Layout 0 ASCII 0 Keyboard 0 Movement Arrows Keybinds 0 Fullscreen 2 Font 18/SmallcapsGlow Map View 38x25 Zoom Use 99% Tactical HUD 1 Map Filters NONE Filters NONE Steam 1 RUN: fab4e7df-eee0-4606-b23e-e77255f81f02